Cogmind - Beta 13 @@@ ROGUE MODE // 2024.04.20 @ 00:11:28 Player: GregoriusTechneticies Result: Destroyed by S-10 Pest with Light Assault Rifle Performance ------------- Evolutions (2) 1000 Regions Visited (3) 600 Robots Destroyed (65) 325 Value Destroyed (1065) 1065 Prototype IDs (0) 0 Alien Tech Used (0) 0 Bonus (103) 103 TOTAL SCORE: 3093 Bonus ------- High Alert Combat Kills 103 Cogmind --------- Core Integrity 0/550 Matter 300/300 Energy 100/100 System Corruption 0% Temperature Cool (0) Movement Core (250) Ox4 Location -8/Materials Parts ------- > --- POWER (1) -------- (None) > --- PROPULSION (2) --- (None) > --- UTILITY (6) ------ Medium Storage Unit Terrain Scan Processor Melee Analysis Suite > --- WEAPON (2) ------- Great Maul > --- INVENTORY (10) --- Reinforced Ion Engine Medium Matter Pod (100) Structural Scanner Terrain Scan Processor Seismic Detector Minigun Mining Laser Katana Peak State ------------ > --- POWER ------------ Reinforced Ion Engine > --- PROPULSION ------- Wheel Compact Wheel > --- UTILITY ---------- Medium Storage Unit Improved Terrain Scanner Terrain Scan Processor Seismic Detector > --- WEAPON ----------- Minigun Minigun > --- INVENTORY -------- Improved Ion Engine Nuclear Core Medium Matter Pod Structural Scanner Terrain Scan Processor Seismic Detector Minigun Mining Laser Great Maul Great Maul [Rating: 19] Favorites ----------- Power Light Ion Engine Engine Light Ion Engine Power Core Nuclear Core Propulsion Wheel Treads Light Treads Wheel Wheel Utility Seismic Detector Device Seismic Detector Storage Small Storage Unit Processor Terrain Scan Processor Protection Light Armor Plating Weapon Light Assault Rifle Energy Gun Medium Laser Ballistic Gun Light Assault Rifle Impact Weapon Great Maul Build | -11 -10 -9 -8 ------- Run | Yrd Mat Mat Mat Slots Evolved 4 | . . 2 2 Power . | . . . . Propulsion . | . . . . Utility 4 | . . 2 2 Weapon . | . . . . Parts Attached 57 | 13 6 31 7 Power 11 | 2 2 5 2 Engine 10 | 2 2 5 1 Core 1 | . . . 1 Reactor . | . . . . Propulsion 21 | 6 2 13 . Treads 2 | . . 2 . Leg . | . . . . Wheel 19 | 6 2 11 . Hover . | . . . . Flight . | . . . . Utility 12 | 3 . 8 1 Device 7 | 2 . 5 . Storage 2 | 1 . 1 . Processor 2 | . . 1 1 Hackware . | . . . . Protection 1 | . . 1 . Artifact . | . . . . Weapon 13 | 2 2 5 4 Energy Gun 1 | 1 . . . Energy Cannon . | . . . . Ballistic Gun 10 | 1 2 5 2 Ballistic Cannon . | . . . . Launcher . | . . . . Special Weapon . | . . . . Impact Weapon 2 | . . . 2 Slashing Weapon . | . . . . Piercing Weapon . | . . . . Special Melee Weapon . | . . . . Unidentified Prototypes . | . . . . Parts Lost 15 | . 2 4 9 Power 3 | . 1 . 2 Propulsion 6 | . 1 3 2 Utility 3 | . . 1 2 Weapon 3 | . . . 3 Highest Loss Streak 5 | . 1 2 5 To Critical Strikes . | . . . . Average Slot Usage (%) 89 | . 99 91 67 Engine 10 | . 13 11 5 Treads 1 | . . 2 . Wheel 16 | . 28 14 7 Device 17 | . 14 19 15 Storage 11 | . 14 11 9 Processor 7 | . . 9 12 Ballistic Gun 20 | . 24 22 9 Impact Weapon 1 | . . . 7 Naked Turns . | . . . . Heaviest Build 28 | 12 12 28 28 Greatest Support 40 | 20 20 40 26 Greatest Overweight (x) 9 | 2 1 6 9 Average Overweight (x) . | . . . 2 Largest Inventory Capacity 10 | 8 8 10 10 Average Capacity 8 | 7 8 8 10 Most Carried 10 | 8 8 10 10 Average Carried 7 | 5 7 8 9 Final Capacity 10 | 8 8 10 10 Final Carried 10 | 8 8 10 8 Class Distribution -------------------- 91% | Scavenger-Mutant 4% | Scavenger-Gladiator 3% | Mutant Dominant Class ---------------- Scavenger-Mutant | -10/Materials Scavenger-Mutant | -9/Materials Scavenger-Mutant | -8/Materials Resources | -11 -10 -9 -8 ----------- Run | Yrd Mat Mat Mat Matter Collected 1610 | 459 115 807 229 Remotely . | . . . . Salvage Created 2030 | 306 163 1418 143 Parts 153 | 29 13 104 7 Haulers Intercepted 1 | . . 1 . Recyclers Shooed 4 | . 1 3 . Parts Field Recycled . | . . . . Retrieved Matter . | . . . . Parts Self-Destructed . | . . . . Prevented . | . . . . Kills | -11 -10 -9 -8 ------- Run | Yrd Mat Mat Mat Combat Hostiles Destroyed 33 | . 7 23 3 Melee 1 | . . . 1 Guns 31 | . 7 23 1 Classes Destroyed 10 | 3 2 4 1 Worker 9 | 4 . 5 . Builder 5 | . . 5 . Tunneler 13 | 9 1 3 . Hauler 1 | . . 1 . Recycler 4 | 1 . 3 . Swarmer 13 | . 6 7 . Grunt 12 | . 1 10 1 Brawler 1 | . . 1 . Duelist 1 | . . . 1 Sentry 6 | . . 5 1 Best Kill Streak 14 | 7 3 14 3 Combat Bots Only 6 | . 3 6 3 Max Kills in Single Turn 2 | 1 1 2 1 Gunslinging 1 | . . 1 . Exploded . | . . . . Melee 1 | . . . 1 Uniques/NPCs Destroyed . | . . . . Combat | -11 -10 -9 -8 -------- Run | Yrd Mat Mat Mat Hostile Shots Fired 302 | . 67 117 118 Missed 87 | . 20 36 31 Damage Taken 2764 | . 429 975 1360 Core 973 | . 88 333 552 Absorbed by Shields . | . . . . Core Remaining (%) 60 | 100 64 16 . Volleys Fired 185 | 34 46 99 6 Largest 2 | 2 2 2 2 Hottest 70 | 70 70 50 50 Shots Fired 370 | 68 92 198 12 Gun 370 | 68 92 198 12 Cannon . | . . . . Launcher . | . . . . Special . | . . . . Kinetic 323 | 34 79 198 12 Thermal 47 | 34 13 . . Explosive . | . . . . Electromagnetic . | . . . . Robot Hit Streak 16 | 16 6 10 8 Robot Miss Streak 4 | 3 4 4 2 Penetration Max . | . . . . Secondary Targets 4 | . 1 3 . Max Gunslinging Chain 1 | . 1 1 . Shots Hit Robots 227 | 43 43 130 11 Core Hits 92 | 19 18 51 4 Critical Kills . | . . . . Critical Parts Destroyed 2 | . 1 1 . Critical Strikes 5 | 2 2 1 . Burn 3 | 2 1 . . Destroy 2 | . 1 1 . Melee Attacks 4 | . . . 4 Impact 4 | . . . 4 Slashing . | . . . . Piercing . | . . . . Sneak Attacks . | . . . . Combat Hostiles . | . . . . Follow-up Attacks . | . . . . Damage Inflicted 3066 | 451 372 2006 237 Guns 2978 | 451 372 2006 149 Cannons . | . . . . Explosions . | . . . . Melee 88 | . . . 88 Ramming . | . . . . Kinetic 2644 | 154 335 2006 149 Thermal 334 | 297 37 . . Explosive . | . . . . Electromagnetic . | . . . . Impact 88 | . . . 88 Slashing . | . . . . Piercing . | . . . . Highest Corruption . | . . . . Average Corruption . | . . . . Corruption Purged . | . . . . Corruption Blocked . | . . . . Overload Shots . | . . . . Overflow Damage 7 | . . . 7 Projectiles . | . . . . Explosions . | . . . . Melee 7 | . . . 7 Knockbacks . | . . . . Impact . | . . . . Kinetic . | . . . . Secondary . | . . . . Self-Inflicted Damage . | . . . . Shots . | . . . . Rammed 1 | . . . 1 Targets Rammed 1 | . . . 1 Kicked . | . . . . Crushed . | . . . . Highest Temperature 150 | 120 150 67 65 Average Temperature 34 | 38 64 17 27 Received Heat Transfer 1101 | . 114 429 558 Siege Activations . | . . . . Robots Corrupted . | . . . . Combat Hostiles . | . . . . Parts Fried . | . . . . Impact Corruptions 1 | . . . 1 Robots Melted . | . . . . Combat Hostiles . | . . . . Parts Melted 1 | 1 . . . Heat Transferred 1221 | 1036 185 . . Parts Sabotaged . | . . . . Parts Stolen . | . . . . Parts Stripped . | . . . . Power Chain Reactions . | . . . . Alert | -11 -10 -9 -8 ------- Run | Yrd Mat Mat Mat Peak Influence 671 | 70 286 671 283 Initial 162 | . 45 116 162 Average 262 | 37 204 395 203 Maximum Alert Level 2 | . 1 2 1 Low Security (%) 46 | 100 36 21 64 Level 1 23 | . 63 16 35 Level 2 29 | . . 62 . Level 3 . | . . . . Level 4 . | . . . . Level 5 . | . . . . High Security . | . . . . Max Security . | . . . . Squads Dispatched 10 | . 2 7 1 Investigation 4 | . . 4 . Extermination . | . . . . Reinforcement 5 | . 2 2 1 Assault 1 | . . 1 . Garrison . | . . . . Intercept . | . . . . Searches Triggered . | . . . . Construction Impeded 1 | . . 1 . Haulers Reinforced . | . . . . Active Scanning Responses . | . . . . Cargo Convoy Interrupts . | . . . . Stealth | -11 -10 -9 -8 --------- Run | Yrd Mat Mat Mat Distress Signals 3 | . 2 . 1 Communications Jammed . | . . . . Distress Signals . | . . . . Times Spotted 65 | . 19 27 19 Peak Tracking Total 9 | . 4 6 9 Tactical Retreats 3 | . 1 1 1 Traps | -11 -10 -9 -8 ------- Run | Yrd Mat Mat Mat Traps Triggered . | . . . . Indirectly . | . . . . Trap Hack Attempts . | . . . . Triggered . | . . . . Disarmed . | . . . . Reprogrammed . | . . . . Reused . | . . . . Traps Extracted . | . . . . Installed . | . . . . Triggered . | . . . . Machines | -11 -10 -9 -8 ---------- Run | Yrd Mat Mat Mat Machines Disabled 1 | . . 1 . Max in Single Turn 1 | . . 1 . Machines Repaired . | . . . . Machines Dismantled . | . . . . Machines Sabotaged . | . . . . Overloaded Fab Kills . | . . . . Hacking | -11 -10 -9 -8 --------- Run | Yrd Mat Mat Mat Machines Accessed 5 | . . 5 . Terminals 5 | . . 5 . Fabricators . | . . . . Repair Stations . | . . . . Recycling Units . | . . . . Scanalyzers . | . . . . Garrison Access . | . . . . Total Hacks 21 | . . 21 . Successful 8 | . . 8 . Failed 13 | . . 13 . Catastrophic 3 | . . 3 . Database Lockouts . | . . . . Manual 21 | . . 21 . Terminals 21 | . . 21 . Fabricators . | . . . . Repair Stations . | . . . . Recycling Units . | . . . . Scanalyzers . | . . . . Garrison Access . | . . . . Terminal Hacks 3 | . . 3 . Level Access Points 1 | . . 1 . Terminal Index 1 | . . 1 . Unreport Threat 1 | . . 1 . Fabricator Hacks . | . . . . Repair Station Hacks . | . . . . Recycling Unit Hacks . | . . . . Scanalyzer . | . . . . Garrison Access Hacks . | . . . . Unauthorized Hacks 5 | . . 5 . Terminals 5 | . . 5 . Botnet 5 | . . 5 . Fabricators . | . . . . Repair Stations . | . . . . Recycling Units . | . . . . Scanalyzers . | . . . . Garrison Access . | . . . . Data Cores Recovered . | . . . . Used . | . . . . Hacking Detections 5 | . . 5 . Full Trace Events 4 | . . 4 . Feedback Events . | . . . . Feedback Blocked . | . . . . Robot Schematics Acquired . | . . . . Robots Built . | . . . . Authchips . | . . . . Time . | . . . . Total Robot Build Rating . | . . . . Part Schematics Acquired . | . . . . Parts Built . | . . . . Authchips . | . . . . Time . | . . . . Total Part Build Rating . | . . . . Parts Repaired . | . . . . Time . | . . . . Parts Recycled . | . . . . Recycled Matter . | . . . . Retrieved Matter . | . . . . Retrieved Components . | . . . . Parts Scanalyzed . | . . . . Part Schematics Acquired . | . . . . Parts Damaged . | . . . . Bothacking | -11 -10 -9 -8 ------------ Run | Yrd Mat Mat Mat Used RIF Installer . | . . . . Robots Hacked . | . . . . Non-combat . | . . . . Combat . | . . . . Robot Hacks Applied . | . . . . Relay Couplers Released . | . . . . Fabnet Peak Effective % . | . . . . Robots Rewired . | . . . . Allies Hacked . | . . . . Hacks Repelled . | . . . . Allies | -11 -10 -9 -8 -------- Run | Yrd Mat Mat Mat Total Allies . | . . . . Largest Group . | . . . . Highest-Rated Group . | . . . . Highest-Rated Ally . | . . . . Total Orders . | . . . . Ally Attacks . | . . . . Total Damage . | . . . . Kills . | . . . . Allies Corrupted . | . . . . Allies Melted . | . . . . Intel | -11 -10 -9 -8 ------- Run | Yrd Mat Mat Mat Robot Analysis Total . | . . . . Derelict Logs Recovered . | . . . . Drone Launches . | . . . . Drone Recoveries . | . . . . Exploration | -11 -10 -9 -8 ------------- Run | Yrd Mat Mat Mat Turns Passed 1715 | 348 304 823 240 Spaces Moved 940 | 227 209 387 117 Core 94 | 30 . 35 29 Treads 35 | . . 35 . Legs . | . . . . Wheels 811 | 197 209 317 88 Hover . | . . . . Flight . | . . . . Fastest Speed 50 | 50 80 80 105 Average Speed 108 | 86 80 117 169 Slowest Speed 500 | 150 95 350 500 Overloaded Moves . | . . . . Propulsion Burnouts . | . . . . Robots Hopped . | . . . . Cave-ins Triggered . | . . . . Exploration Rate (%) 23 | 7 31 40 14 Regions Visited 3 Branch Regions . Pre-discovered Areas . | . . . . Known Exits Taken 1 | . . 1 . Unknown Exits Taken 2 | 1 1 . . Scrap Searched . | . . . . Spaces Dug 1 | . . . 1 Terrain Destroyed 1 | . . . 1 Melee 1 | . . . 1 Projectile . | . . . . AOE . | . . . . Terrain Rammed . | . . . . Walls Destroyed . | . . . . Machines Disabled . | . . . . Actions | -11 -10 -9 -8 --------- Run | Yrd Mat Mat Mat Total 1324 | 321 271 593 139 Wait 69 | 31 . 38 . Move 937 | 226 208 386 117 Hop . | . . . . Pick Up 28 | 10 4 10 4 Fast Attach 18 | 7 2 9 . Attach 5 | . . . 5 Detach . | . . . . Swap 34 | 6 4 22 2 Drop 44 | 7 7 29 1 Fire 185 | 34 46 99 6 Melee 3 | . . . 3 Ram 1 | . . . 1 Kick . | . . . . Crush . | . . . . Escape Stasis . | . . . . Rewire . | . . . . Trap . | . . . . Miscellaneous . | . . . . Route ------- -11/Scrapyard -10/Materials -9/Materials (discovered 3 exits: *Mat x3) -8/Materials History --------- Turn | Location | Event 8 | -11/Scrapyard | Discovered new exit (range 15) 349 | -11/Scrapyard | Entered Materials 350 | -10/Materials | Build established: Scavenger-Mutant 613 | -10/Materials | Discovered new exit (range 16) 653 | -10/Materials | Entered another Materials area 653 | -9/Materials | Evolved 2 slots: Utility x2 1007 | -9/Materials | Core integrity fell below 50% 1299 | -9/Materials | Identified exit to Materials 1413 | -9/Materials | Core integrity fell below 20% 1453 | -9/Materials | First assault squad dispatched 1476 | -9/Materials | Entered another Materials area 1476 | -8/Materials | Evolved 2 slots: Utility x2 1619 | -8/Materials | Core integrity fell below 50% 1643 | -8/Materials | Lost 5 parts (1p2n2w) 1672 | -8/Materials | Core integrity fell below 20% 1716 | -8/Materials | Destroyed by S-10 Pest with Light Assault Rifle Last Messages --------------- 01630_ Y-45 Defender system terminally corrupted. 01632_ Acquired Minigun. 01633_ Acquired 41 matter. 01640_ Acquired Katana. 01641_ Slug penetrates Recycling Unit. 01644_ Slug penetrates Wall. 01648_ Acquired 28 matter. 01663_ Penetrated by Slug. 01666_ Slug penetrates Wall. 01674_ Imp. Terrain Scanner destroyed. 01678_ Slug penetrates Wall. 01690_ Seismic Detector destroyed. 01711_ W-25 Informer sends out distress signal. 01711_ Penetrated by Slug. 01711_ Great Maul destroyed. 01711_ Nuclear Core destroyed. 01713_ S-10 Pest destroyed. 01714_ Penetrated by Slug. 01714_ K-01 Serf destroyed. Map ----- +----------------------------------------------------+ | ???????????# #"S #?? ??""????????????????? | | ????? # #""" ## ""??"?#?????????????? | | ?????? ? # # "" ## ???? ???????????????? | | ??????? # # %## ? ???#??? ???????"?? | | ?? ? ? ? ? # # ##? ? ? ????#? ?## ????? | | ??####+##### ###+############?+??? ?? #?"???? | | ? ! ?? ??? #?????? | | ? ???? #?????? | | ? ????? #??? ?? | | ??#### ##################?#??? #?"???? | | ?????# #?##??######?#?##??#??? #??????? | | # ##??######?########### #???"??? | | ? ? # """ ###########?##[ ** # #??????? | | ?? ?# Y" = ############## + #??????? | | # """ == % " # | | + ####################### | | ? # *%= #?### """"""" #?#"?"???? | | ?? ?# #####+###### """"""" # ??????? | | ? # ?## ##?# """"""" #? ? ? ? | | ?#?### ## #?## """"""" # ??????"?? """ | | ##??#?? ## #### """"""" # ????? ???? R" | | ????## ???# #??# #? "?" ??? """?? | | ??#### ## #??# * #?? ??? ???? ?? | | ?#?### ## ##?# !g # ?? ???? ?? ??? | | ?#??# ###+###########g##### m ??? ?? | | ??#?# ] g h @= w !??? ?? | | ????# g ?? ? ???? | | ????# o s =%s ????????? | | ????# ####T#####+######s### ######?????????? | | ????###+##???###? ? # ? !?? #?????? ???????? | | ????? ???????????????? # ? #?? #??????????????? | | ???#????"? ?#???? ? ???????? #??????????????????? | | ??????????? ??#??? ???????? #??????????????????? | | ????????"????????? ? ??????? +??????????????????? | | ??????????????????? ???#??????#??????????????????? | | ??#?????? ???????????????????????????????????????? | | ???#?????????????????????????????????????????????? | | ???????? ???????#????????????????????????????????? | | ?????????????#???????????????????????????????????? | | ?????????????????????????????????????????????????? | | ?????????????????????????????????????????????????? | | ?????????????????????????????????????????????????? | | ?????????????????????????????????????????????????? | | ?????????????????????????????????????????????????? | | ?????????????????????????????????????????????????? | | ?????????????????????????????????????????????????? | | ?????????????????????????????????????????????????? | | ?????????????????????????????????????????????????? | | ?????????????????????????????????????????????????? | | ?????????????????????????????????????????????????? | +----------------------------------------------------+ Best States ------------- Heat Dissipation 31 Energy Generation 14 Energy Capacity 265 Matter Stores 300 Matter Capacity 300 Sight Range 16 Terrain Scan Range 16 Terrain Scan Density 85 Armor Coverage 150 Evasion (%) 44 Melee Accuracy 5 Recoil Reduction 2 Item Schematics ----------------- None Robot Schematics ------------------ None Fabricated ------------ Nothing Alien Tech Used ----------------- None Achievements -------------- None Challenges ------------ None Game ------ Seed DisruptorParticleWarhead Manual? 0 Play Time 00:18:14 Cumulative 42.2 hours Start 2024.04.19 @ 23:52:31 End 2024.04.20 @ 00:11:28 Sessions 1 Manual Loads 0 Difficulty Rogue Special Mode None Game No. 61 Rogue 46 Adventurer 0 Explorer 15 Win Type - Total 0 Types 0/0/0/0/0/0/0/0/0 Lore% 25 Gallery% 35 Achievement% 26 Wizard Run 0 Options --------- Layout 1 ASCII 0 Keyboard 0 Movement Mouse Keybinds 0 Fullscreen 1 Font 24/Smallcaps Map View 50x35 Zoom Use 0% Tactical HUD 1 Map Filters NONE Filters NONE Steam 1 RUN: c356a936-ae02-493f-b7ff-40d888c36d2b